Cogmind - Beta 14 @@@ ROGUE MODE // 2025.02.22 @ 18:38:02 Player: saltine Result: Destroyed by G-73 Enforcer with Heavy Laser Performance ------------- Evolutions (8) 4000 Regions Visited (28) 5600 Robots Destroyed (405) 2025 Value Destroyed (22014) 22014 Prototype IDs (23) 460 Alien Tech Used (0) 0 Bonus (13241) 13241 TOTAL SCORE: 47340 Bonus ------- High Alert Combat Kills 2958 Follower Combat Kills 3342 Entered Garrisons 1800 Used RIF Installer 6500 Friendly Fire -1359 Cogmind --------- Core Integrity 0/1450 Matter 290/300 Energy 99/100 System Corruption 27% Temperature Cool (0) Movement Core (50) Location -2/Research Parts ------- > --- POWER (3) -------- (None) > --- PROPULSION (6) --- (None) > --- UTILITY (11) ----- Experimental Signal Interpreter Improved Targeting Computer Relay Coupler [Sentry] (17) Relay Coupler [Behemoth] (5) > --- WEAPON (3) ------- (None) > --- INVENTORY (5) ---- Medium Storage Unit Long-range Terrain Scanner Enhanced Nova Cannon Advanced Micro-nuke Launcher Peak State ------------ > --- POWER ------------ Light Particle Reactor Micro Antimatter Reactor > --- PROPULSION ------- Armored Medium Treads Advanced Medium Treads Armored Heavy Treads Improved Heavy Siege Treads > --- UTILITY ---------- Advanced Coolant Injector Huge Storage Unit Advanced Transmission Jammer Advanced Phase Shifter Layered Medium Armor Plating Advanced Force Field Relay Coupler [NC] Relay Coupler [Sentry] Relay Coupler [Specialist] Relay Coupler [Hunter] > --- WEAPON ----------- Enhanced Nova Cannon Heavy Linear Accelerator > --- INVENTORY -------- Light Particle Reactor Advanced Medium Treads Advanced Medium Treads Matter Compressor Advanced Transmission Jammer Advanced Force Field Relay Coupler [Sentry] Relay Coupler [Hunter] Relay Coupler [Behemoth] Relay Coupler [Proto] Relay Coupler [Proto] Long-range Tractor Beam HERF Cannon Nova Cannon Improved Matter Neutralizer Improved Matter Neutralizer Enhanced Nova Cannon Compact Mass Driver Tiamat Missile Launcher Advanced Micro-nuke Launcher Advanced Micro-nuke Launcher Advanced Micro-nuke Launcher Improved Datajack Improved Remote Datajack Advanced Remote Datajack [Rating: 156] Favorites ----------- Power Light Quantum Reactor Engine Ion Engine Power Core Reinforced Fission Core Reactor Light Quantum Reactor Propulsion Light Treads Treads Light Treads Leg Aluminum Leg Wheel Armored Wheel Flight Unit Xenon Bombardment Thruster Utility Huge Storage Unit Device Advanced Transmission Jammer Storage Huge Storage Unit Processor Improved Targeting Computer Hackware Relay Coupler [Sentry] Protection Medium Reactive Plating Weapon Heavy Assault Rifle Energy Gun Improved Lightning Gun Energy Cannon Nova Cannon Ballistic Gun Heavy Assault Rifle Ballistic Cannon Heavy Linear Accelerator Launcher Improved Grenade Launcher Special Weapon Remote Datajack Slashing Weapon Plasma Sword Special Melee Weapon Improved Datajack Build | -11 -10 -10 -9 -9 -8 -8 -8 -8 -7 -7 -7 -7 -6 -6 -6 -6 -5 -5 -5 -5 -4 -4 -4 -4 -3 -3 -3 -2 ------- Run | Yrd Mat Min Mat Min Mat Gar Mat Gar Fac Gar Fac Gar Fac Gar Fac Gar Fac Was Fac Gar Fac Gar Fac Gar Res Arm Lab Res Slots Evolved 16 | . . . 2 . 2 . . . 2 . . . 2 . . . 2 . . . 2 . . . 2 . . 2 Power 2 | . . . . . . . . . . . . . . . . . 1 . . . . . . . . . . 1 Propulsion 4 | . . . . . 1 . . . 1 . . . . . . . 1 . . . 1 . . . . . . . Utility 9 | . . . 1 . 1 . . . 1 . . . 2 . . . . . . . 1 . . . 2 . . 1 Weapon 1 | . . . 1 . . . . . . . . . . . . . . . . . . . . . . . . . Parts Attached 542 | 4 19 1 27 4 20 24 34 15 11 29 16 32 4 21 2 24 14 4 1 16 29 31 . 39 25 33 6 57 Power 33 | . 3 . 2 1 2 2 2 . . 2 1 1 . . . . 1 1 . 2 . 2 . 1 2 3 . 5 Engine 10 | . 2 . 2 1 1 . 1 . . 2 1 . . . . . . . . . . . . . . . . . Core 6 | . 1 . . . 1 2 1 . . . . 1 . . . . . . . . . . . . . . . . Reactor 17 | . . . . . . . . . . . . . . . . . 1 1 . 2 . 2 . 1 2 3 . 5 Propulsion 81 | 3 2 . 6 . 6 4 5 2 1 8 3 5 . 2 1 1 1 . . 1 1 2 . . 3 3 2 19 Treads 59 | 3 2 . 6 . 6 4 5 2 1 6 3 4 . 2 1 1 1 . . 1 1 2 . . 3 3 2 . Leg . | . . . . . . . . . . . . . . . . . . . . . . . . . . . . . Wheel 3 | . . . . . . . . . . 2 . 1 . . . . . . . . . . . . . . . . Hover . | . . . . . . . . . . . . . . . . . . . . . . . . . . . . . Flight 19 | . . . . . . . . . . . . . . . . . . . . . . . . . . . . 19 Utility 224 | 1 6 1 12 2 9 7 18 6 6 7 9 11 3 6 1 12 6 1 . 5 20 14 . 20 7 15 1 18 Device 110 | 1 4 1 7 2 3 3 9 6 3 1 5 8 1 1 . 6 2 1 . 1 11 8 . 6 2 10 1 7 Storage 5 | . 2 . 1 . 1 . . . . . . . . . . . 1 . . . . . . . . . . . Processor 3 | . . . . . . . . . . . . . . . . . . . . . . . . . 1 . . 2 Hackware 47 | . . . . . 1 . 2 . 2 2 1 1 1 4 1 5 2 . . 1 2 4 . 6 . 3 . 9 Protection 59 | . . . 4 . 4 4 7 . 1 4 3 2 1 1 . 1 1 . . 3 7 2 . 8 4 2 . . Artifact . | . . . . . . . . . . . . . . . . . . . . . . . . . . . . . Weapon 204 | . 8 . 7 1 3 11 9 7 4 12 3 15 1 13 . 11 6 2 1 8 8 13 . 18 13 12 3 15 Energy Gun 10 | . . . . . . . 1 . . . . . 1 4 . 4 . . . . . . . . . . . . Energy Cannon 54 | . . . . . . 1 1 3 1 2 . 1 . . . 2 3 . 1 3 3 6 . 9 6 5 1 6 Ballistic Gun 45 | . 4 . 6 1 3 7 6 3 2 5 2 6 . . . . . . . . . . . . . . . . Ballistic Cannon 19 | . 2 . . . . . 1 . 1 1 . 3 . 3 . . . . . 2 . 1 . 1 1 1 1 1 Launcher 20 | . 2 . 1 . . 3 . 1 . 1 . 2 . 1 . 1 1 . . . . . . . 1 1 1 4 Special Weapon 45 | . . . . . . . . . . 3 1 3 . 2 . 3 2 2 . 2 3 6 . 7 4 4 . 3 Impact Weapon . | . . . . . . . . . . . . . . . . . . . . . . . . . . . . . Slashing Weapon 1 | . . . . . . . . . . . . . . . . . . . . . . . . . . . . 1 Piercing Weapon . | . . . . . . . . . . . . . . . . . . . . . . . . . . . . . Special Melee Weapon 10 | . . . . . . . . . . . . . . 3 . 1 . . . 1 2 . . 1 1 1 . . Unidentified Prototypes 18 | . . . 2 . . . 3 . . . . . 1 . . . . . . . . . . . 1 2 1 8 Corrupted Parts 2 | . . . . . . . . . . 1 . . . . . . . . . . . . . . . . . 1 System Corruption 13 | . . . . . . . . . . 4 . . . . . . . . . . . . . . . . . 9 Parts Lost 93 | . 1 . 1 1 1 3 4 2 1 10 1 7 . 2 . 1 . . . . . 4 . 3 9 4 . 38 Power 13 | . 1 . . . 1 . . . 1 1 . 1 . . . . . . . . . 1 . 1 1 1 . 4 Propulsion 32 | . . . . . . 1 2 1 . 4 1 3 . . . . . . . . . 1 . . 2 1 . 16 Utility 37 | . . . . . . 2 . 1 . 5 . 1 . 2 . 1 . . . . . 2 . 2 5 1 . 15 Weapon 11 | . . . 1 1 . . 2 . . . . 2 . . . . . . . . . . . . 1 1 . 3 Highest Loss Streak 9 | . 1 . 1 1 1 3 2 2 1 6 1 5 . 1 . 1 . . . . . 4 . 2 3 2 . 9 To Critical Strikes 3 | . . . . . . . 1 . . 1 . . . . . . . . . . . . . . . . . 1 Average Slot Usage (%) 89 | . 99 100 99 98 99 99 99 99 95 92 91 86 93 87 80 78 76 78 82 81 82 79 78 76 74 78 87 60 Engine 3 | . 6 14 11 11 7 . 6 . . 3 7 1 . . . . . . . . . . . . . . . . Core 2 | . 7 . . . 1 9 2 9 3 . . 4 6 6 6 6 . . . . . . . . . . . . Reactor 2 | . . . . . . . . . . . . . . . . . 4 7 11 11 10 10 10 9 8 8 9 3 Treads 21 | . 27 28 21 22 26 26 26 26 30 26 29 20 20 20 20 17 17 17 17 17 21 18 15 15 14 18 23 5 Device 9 | . 13 14 12 11 6 3 7 8 6 3 5 6 13 6 . 8 15 11 11 9 8 11 15 8 13 13 13 7 Storage 7 | . 14 14 11 11 9 9 9 9 7 7 7 7 6 6 6 6 5 5 5 5 5 5 5 5 4 4 4 1 Hackware 10 | . . . . . 8 . 4 . 7 6 8 15 20 20 25 19 12 17 17 18 21 14 15 18 17 20 19 22 Protection 8 | . . . 9 11 11 23 15 18 14 16 15 7 6 9 6 6 5 5 5 5 4 8 5 8 6 2 4 1 Energy Cannon 2 | . . . . . . 1 . 4 3 1 . 5 6 4 . 2 3 . 3 4 3 4 5 3 2 4 8 2 Ballistic Gun 12 | . 21 28 32 32 27 25 24 21 16 11 6 5 4 . . . . . . . . . . . . . . . Ballistic Cannon 3 | . 4 . . . . . . . 1 7 7 6 6 2 6 6 5 5 5 4 5 4 5 4 3 3 2 . Peak Build Rating 156 | 7 11 11 25 18 30 31 35 35 39 44 43 68 75 87 81 103 112 113 117 121 136 144 143 143 155 156 146 146 Average Rating 65 | 6 8 10 20 17 26 29 29 33 36 38 40 55 74 80 78 90 108 107 115 116 129 136 143 133 145 140 139 93 On Entrance 73 | 6 7 10 10 18 18 30 30 35 32 34 41 42 68 75 81 80 103 107 113 117 121 129 143 143 140 121 133 137 Naked Turns . | . . . . . . . . . . . . . . . . . . . . . . . . . . . . . Heaviest Build 200 | 14 92 30 101 99 100 106 126 125 126 140 140 138 140 168 164 168 154 143 152 162 183 200 179 188 192 170 158 158 Greatest Support 210 | 40 40 40 44 40 64 64 64 62 80 80 80 108 108 108 110 120 155 155 155 170 197 197 195 195 210 195 192 192 Greatest Overweight (x) 11 | . 2 . 2 2 1 1 2 2 1 11 2 11 1 1 1 1 . . . . . 1 . . . 1 . 1 Average Overweight (x) . | . . . 1 2 1 1 1 1 1 2 1 3 1 1 1 1 . . . . . . . . . . . . Largest Inventory Capacity 25 | 8 25 15 25 25 25 25 25 25 25 25 25 25 25 25 25 25 25 25 25 25 25 25 25 25 25 25 25 25 Average Capacity 23 | 8 13 15 24 25 25 25 25 25 25 25 25 25 25 25 25 25 25 25 25 25 25 25 25 25 25 25 25 12 Most Carried 25 | 6 15 15 25 25 25 25 25 25 25 25 25 25 25 25 25 25 25 25 25 25 25 25 25 25 25 25 23 25 Average Carried 22 | 4 8 14 23 24 24 24 24 24 24 24 24 24 24 24 24 24 24 24 24 24 24 24 25 24 23 24 22 11 Final Capacity 25 | 8 15 15 25 25 25 25 25 25 25 25 25 25 25 25 25 25 25 25 25 25 25 25 25 25 25 25 25 5 Final Carried 25 | 4 15 15 24 25 25 25 25 25 25 25 25 25 25 25 25 25 25 24 25 25 25 25 25 25 24 24 23 4 Class Distribution -------------------- 42% | Botlord-Tank 27% | Scavenger-Tank 8% | Mutant 7% | Bothacker-Tank 7% | Botlord-Mutant 4% | Tank Dominant Class ---------------- Mutant | -10/Materials Mutant | -10/Mines Scavenger-Tank | -9/Materials Scavenger-Tank | -9/Mines Scavenger-Tank | -8/Materials Scavenger-Tank | -8/Garrison Scavenger-Tank | -8/Materials Scavenger-Tank | -8/Garrison Bothacker-Tank | -7/Factory Botlord-Tank | -7/Garrison Botlord-Tank | -7/Factory Botlord-Tank | -7/Garrison Botlord-Tank | -6/Factory Botlord-Tank | -6/Garrison Botlord-Mutant | -6/Factory Botlord-Tank | -6/Garrison Botlord-Tank | -5/Factory Bothacker-Tank | -5/Waste Bothacker-Tank | -5/Factory Bothacker-Tank | -5/Garrison Botlord-Tank | -4/Factory Botlord-Tank | -4/Garrison Botlord-Tank | -4/Factory Botlord-Tank | -4/Garrison Botlord-Tank | -3/Research Botlord-Tank | -3/Armory Botlord-Tank | -3/Lab Botlord-Mutant | -2/Research Resources | -11 -10 -10 -9 -9 -8 -8 -8 -8 -7 -7 -7 -7 -6 -6 -6 -6 -5 -5 -5 -5 -4 -4 -4 -4 -3 -3 -3 -2 ----------- Run | Yrd Mat Min Mat Min Mat Gar Mat Gar Fac Gar Fac Gar Fac Gar Fac Gar Fac Was Fac Gar Fac Gar Fac Gar Res Arm Lab Res Matter Collected 15709 | 215 779 60 1116 215 552 929 837 292 191 1360 334 1235 148 442 212 844 462 80 68 263 528 880 . 1157 782 830 . 898 Remotely 1784 | . . . . . . . . . . . 41 236 . . . . 139 . . . 252 300 . 284 209 323 . . Salvage Created 14880 | 67 764 40 1872 353 861 1100 1351 286 245 994 297 373 95 491 . 490 487 . 184 114 224 1232 . 903 524 865 . 668 Parts 774 | 6 56 2 134 31 37 41 65 27 17 41 17 23 2 22 . 19 21 . 4 3 19 57 . 23 19 46 . 42 Haulers Intercepted 15 | . 2 . 5 . 3 . 1 . . . . . 1 . . . 2 . 1 . . . . . . . . . Recyclers Shooed 11 | . 3 1 3 . . . 1 . 1 . . . . . . . . . . . 1 . . . 1 . . . Parts Field Recycled . | . . . . . . . . . . . . . . . . . . . . . . . . . . . . . Retrieved Matter . | . . . . . . . . . . . . . . . . . . . . . . . . . . . . . Parts Self-Destructed . | . . . . . . . . . . . . . . . . . . . . . . . . . . . . . Prevented . | . . . . . . . . . . . . . . . . . . . . . . . . . . . . . Kills | -11 -10 -10 -9 -9 -8 -8 -8 -8 -7 -7 -7 -7 -6 -6 -6 -6 -5 -5 -5 -5 -4 -4 -4 -4 -3 -3 -3 -2 ------- Run | Yrd Mat Min Mat Min Mat Gar Mat Gar Fac Gar Fac Gar Fac Gar Fac Gar Fac Was Fac Gar Fac Gar Fac Gar Res Arm Lab Res Combat Hostiles Destroyed 344 | . 20 1 44 15 11 27 21 11 3 22 8 12 . 11 . 15 11 . . 3 8 26 . 22 12 21 . 20 Melee 2 | . . . . . . . . . . . . . . . . 1 . . . . . . . . . . . 1 Guns 156 | . 13 1 40 15 11 19 21 5 2 14 5 4 . 4 . 2 . . . . . . . . . . . . Cannons 125 | . 2 . . . . . . 2 1 4 3 4 . 3 . 9 8 . . 3 8 24 . 21 12 16 . 5 AOE 59 | . 5 . 4 . . 8 . 4 . 4 . 4 . 3 . 3 3 . . . . 1 . 1 . 5 . 14 Classes Destroyed 18 | 1 8 . 1 2 1 2 . 1 . . . . . . . . 1 . . . . . . 1 . . . . Worker 10 | . 2 . 2 1 1 . 2 . 1 . 1 . . . . . . . . . . . . . . . . . Builder 7 | . 1 . . . . . . . 2 . 1 . . . . . 1 . . . 1 . . . 1 . . . Tunneler 5 | 3 . . . . 1 . . . . . . . . . . . . . . . . . . . . . . 1 Hauler 15 | . 2 . 5 . 3 . 1 . . . . . 1 . . . 2 . 1 . . . . . . . . . Recycler 7 | . 1 . 1 . 2 . 2 . . . 1 . . . . . . . . . . . . . . . . . Operator 6 | . 2 . 2 . . . . . . . . 1 . 1 . . . . . . . . . . . . . . Watcher 6 | . 2 . 1 . . . 1 . . 1 . . . . . . . . . . . . . . . 1 . . Swarmer 88 | . 9 . 17 9 . . . 7 . 3 4 5 . 4 . 4 3 . . . . 6 . . . 5 . 12 Cutter 3 | . . . . . . . . . . . . . . . . . . . . . . . . 3 . . . . Saboteur 1 | . . . . . . . . . . . . . . . . . 1 . . . . . . . . . . . Grunt 143 | . 11 1 17 3 7 22 14 . . 14 2 6 . 4 . 6 1 . . . . 9 . 13 4 4 . 5 Brawler 7 | . . . . . . 1 1 . . . . . . 1 . . 1 . . . . 2 . 1 . . . . Duelist 9 | . . . . 2 . 1 . . . 2 . 1 . . . . 1 . . . . 1 . . . 1 . . Sentry 36 | . . . 10 . 3 2 5 1 1 4 1 . . 1 . 2 . . . 1 . 2 . 2 1 . . . Demolisher 3 | . . . . 1 . . . . . . . . . . . . 1 . . . . . . . . 1 . . Specialist 7 | . . . . . . . . 3 . . . . . . . . . . . . . . . . . 4 . . Hunter 10 | . . . . . 1 . 1 . 1 . . 1 . . . 2 . . . 1 1 . . 2 . . . . Programmer 40 | . . . . . . 1 . . 1 . 1 . . 2 . 1 3 . . 1 7 6 . 1 7 6 . 3 Martyr 2 | . . . . . . . . . . . . . . . . . . . 2 . . . . . . . . . Best Kill Streak 8 | 2 7 1 7 4 5 8 8 4 4 6 3 3 1 4 . 3 6 . 1 2 3 8 . 4 3 6 . 5 Combat Bots Only 8 | . 6 1 6 4 3 8 6 4 1 6 3 3 . 4 . 3 5 . . 2 3 8 . 4 3 6 . 5 Max Kills in Single Turn 4 | 1 2 1 3 2 1 2 2 2 2 2 3 2 1 3 . 3 3 . 2 1 1 1 . 2 1 4 . 4 Gunslinging 1 | . . . . 1 . . 1 . . . . . . . . . . . . . . . . . . . . . Exploded 4 | . 2 . 3 . . 2 . 2 . 2 . 2 . 3 . 3 3 . . . . 1 . 1 . 4 . 4 Melee 1 | . . . . . . . . . . . . . . . . 1 . . . . . . . . . . . 1 Uniques/NPCs Destroyed . | . . . . . . . . . . . . . . . . . . . . . . . . . . . . . Combat | -11 -10 -10 -9 -9 -8 -8 -8 -8 -7 -7 -7 -7 -6 -6 -6 -6 -5 -5 -5 -5 -4 -4 -4 -4 -3 -3 -3 -2 -------- Run | Yrd Mat Min Mat Min Mat Gar Mat Gar Fac Gar Fac Gar Fac Gar Fac Gar Fac Was Fac Gar Fac Gar Fac Gar Res Arm Lab Res Hostile Shots Fired 2472 | . 120 4 164 47 60 110 123 57 46 282 68 138 . 57 . 163 34 . . 14 76 145 . 127 155 152 . 330 Missed 739 | . 42 2 60 11 11 26 29 13 11 83 24 29 . 16 . 56 12 . . 1 20 23 . 33 35 45 . 157 Intercepted 1 | . . . . . . . . . . . . . . . . . . . . . . . . . . 1 . . Damage Taken 24593 | . 806 22 780 397 736 1306 1437 609 349 2215 422 1378 . 752 146 759 474 . 4 159 806 1697 . 1216 1968 1973 . 4182 Core 2879 | . 105 . 104 9 72 129 121 86 20 141 15 131 . 49 . 68 35 . . . 41 42 . 61 100 84 . 1466 Absorbed by Shields 3621 | . 111 . 280 85 . . . . . . . . . . . 340 37 . . 138 . 575 . 654 703 556 . 142 Reduced by Siege Mode 587 | . . . . . . . . . . . . . . . . . 42 . . . 26 118 . 65 163 173 . . Ignored by Resistances 1584 | . . . . . . . 42 124 41 221 66 326 . 55 . 88 23 . . 13 180 220 . 135 50 . . . Regen/Repaired (Parts) 877 | . 197 . 244 . 178 . . . 186 . . . . . . . . 54 . 18 . . . . . . . . Core Remaining (%) 73 | 100 . 58 . 71 . . . 25 . . . 56 . . . 86 . . . 96 . . . 87 . . 85 . Volleys Fired 1349 | 7 98 4 112 22 46 70 74 25 32 117 28 86 6 53 . 65 35 7 9 18 38 68 . 77 82 104 2 64 Largest 3 | 2 2 2 3 3 3 3 3 3 3 3 2 3 3 3 . 2 2 1 2 2 2 2 . 2 2 3 1 1 Hottest 299 | 70 70 40 69 69 69 79 115 106 109 132 88 136 136 180 . 196 196 5 196 196 196 203 . 203 203 299 88 120 Shots Fired 2444 | 14 191 8 330 64 138 190 213 49 57 192 51 118 12 81 . 77 48 7 12 25 59 104 . 106 106 127 3 62 Gun 1386 | 14 168 8 327 64 138 179 212 33 32 87 28 39 3 33 . 21 . . . . . . . . . . . . Cannon 907 | . 17 . . . . 3 1 11 25 92 21 73 9 41 . 48 37 . 12 23 55 96 . 86 98 105 3 51 Launcher 44 | . 6 . 3 . . 8 . 5 . 6 . 2 . 1 . 1 1 . . . . . . . . 3 . 8 Special 107 | . . . . . . . . . . 7 2 4 . 6 . 7 10 7 . 2 4 8 . 20 8 19 . 3 Kinetic 1691 | 7 159 8 327 64 138 179 182 33 45 135 49 84 9 12 . 38 19 . 3 7 26 37 . 53 35 30 . 12 Thermal 528 | 7 26 . . . . . 31 8 1 44 . 28 3 29 . 10 18 . 9 16 29 59 . 33 63 75 . 39 Explosive 44 | . 6 . 3 . . 8 . 5 . 6 . 2 . 1 . 1 1 . . . . . . . . 3 . 8 Electromagnetic 74 | . . . . . . 3 . 3 11 . . . . 33 . 21 . . . . . . . . . . 3 . Robot Hit Streak 21 | 2 10 9 11 6 11 10 21 11 14 20 14 7 6 8 . 16 11 4 7 11 11 17 . 9 12 13 . 6 Robot Miss Streak 9 | 2 7 1 9 3 5 5 6 3 6 5 4 3 2 3 . 3 4 1 1 1 4 2 . 4 4 3 . 3 Penetration Max 1 | . . . . . . . . . 1 1 1 1 . . . . . . . . . . . . . . . . Secondary Targets 23 | . 1 . 10 3 1 2 3 2 . 1 . . . . . . . . . . . . . . . . . . Max Gunslinging Chain 1 | . 1 . 1 1 1 1 1 1 . 1 . . . . . . . . . . . . . . . . . . Capacitor 6 | . . . . . . . . . . . . . . . . . . . . . . . . . . . . 6 Shots Hit Robots 1431 | 7 99 6 182 34 95 113 151 28 28 125 31 43 7 43 1 47 29 4 9 12 34 71 . 70 51 83 . 28 Core Hits 643 | 5 50 2 81 20 36 68 57 13 13 64 15 19 2 20 . 20 16 . 4 2 8 32 . 22 14 36 . 24 Critical Kills 5 | . 1 . 1 . . 1 . . . . 1 . . . . . . . . . . 1 . . . . . . Critical Parts Destroyed 4 | . 1 . . . 1 . . . 1 1 . . . . . . . . . . . . . . . . . . Critical Strikes 47 | 2 4 . 1 . 1 1 2 . 2 2 3 3 1 1 . 4 1 . . 2 . 3 . 5 5 2 . 2 Burn 5 | 2 1 . . . . . 2 . . . . . . . . . . . . . . . . . . . . . Meltdown 1 | . . . . . . . . . . . . . . . . . . . . . . 1 . . . . . . Destroy 8 | . 2 . 1 . 1 1 . . 1 1 1 . . . . . . . . . . . . . . . . . Blast 30 | . 1 . . . . . . . . 1 2 3 1 . . 3 1 . . 2 . 2 . 5 5 2 . 2 Corrupt 3 | . . . . . . . . . 1 . . . . 1 . 1 . . . . . . . . . . . . Melee Attacks 21 | . . . . . . . . . . . . . . 6 1 1 . . . 1 2 . . 2 2 6 . . Impact . | . . . . . . . . . . . . . . . . . . . . . . . . . . . . . Slashing . | . . . . . . . . . . . . . . . . . . . . . . . . . . . . . Piercing . | . . . . . . . . . . . . . . . . . . . . . . . . . . . . . Sneak Attacks 15 | . . . . . . . . . . . . . . 6 1 1 . . . . . . . . 1 6 . . Combat Hostiles 1 | . . . . . . . . . . . . . . . . 1 . . . . . . . . . . . . Follow-up Attacks . | . . . . . . . . . . . . . . . . . . . . . . . . . . . . . Damage Inflicted 46647 | 70 1650 78 2957 549 1454 2923 2616 728 692 3448 1136 1485 167 1347 . 2515 2124 . 479 659 2007 3676 . 3576 3133 4135 . 3043 Guns 13394 | 70 989 66 2537 507 1356 1838 2568 387 477 1076 364 402 62 488 . 207 . . . . . . . . . . . . Cannons 25586 | . 197 . . . . . . 76 172 1515 770 719 105 644 . 2109 1832 . 479 659 1999 3676 . 3576 3028 2958 . 1072 Explosions 7225 | . 433 . 374 . . 1085 . 265 43 857 . 364 . 215 . 177 292 . . . . . . . . 1163 . 1957 Melee . | . . . . . . . . . . . . . . . . . . . . . . . . . . . . . Ramming 442 | . 31 12 46 42 98 . 48 . . . 2 . . . . 22 . . . . 8 . . . 105 14 . 14 Kinetic 28504 | 32 1026 66 2537 507 1356 1838 2062 387 477 1672 1134 984 121 392 . 1871 1354 . 208 510 1563 1905 . 2848 2167 1184 . 303 Thermal 9660 | 38 160 . . . . . 506 76 . 919 . 137 46 303 . 238 478 . 271 149 436 1771 . 728 861 1774 . 769 Explosive 7131 | . 433 . 374 . . 1085 . 265 . 857 . 364 . 164 . 177 292 . . . . . . . . 1163 . 1957 Electromagnetic 910 | . . . . . . . . . 215 . . . . 488 . 207 . . . . . . . . . . . . Impact . | . . . . . . . . . . . . . . . . . . . . . . . . . . . . . Slashing . | . . . . . . . . . . . . . . . . . . . . . . . . . . . . . Piercing . | . . . . . . . . . . . . . . . . . . . . . . . . . . . . . Highest Corruption 27 | . 1 1 . . . . . . 4 18 19 19 . 1 1 1 2 2 2 2 2 2 2 3 10 19 19 27 Average Corruption 6 | . 1 1 . . . . . . 3 10 18 19 . 1 1 1 1 2 2 2 1 2 2 2 6 13 19 20 Corruption Purged . | . . . . . . . . . . . . . . . . . . . . . . . . . . . . . Corruption Blocked . | . . . . . . . . . . . . . . . . . . . . . . . . . . . . . Effects 496 | . 16 5 . . . . . . 7 62 55 81 . 14 3 13 4 9 8 11 3 18 1 21 39 69 1 56 Message Errors 115 | . 5 . . . . . . . 2 13 17 16 . 3 1 2 . 3 1 5 1 3 . 6 8 17 . 12 Matter Fused 105 | . 3 4 . . . . . . . 13 9 16 . 3 1 5 3 2 2 1 1 3 . 5 9 17 . 8 Heat Flow Errors 59 | . 1 . . . . . . . . 7 8 12 . 2 1 1 . 1 2 2 . 2 . 1 5 5 . 9 Energy Discharges 64 | . 3 1 . . . . . . 2 7 6 15 . 3 . 4 1 1 1 1 1 3 . 1 2 10 . 2 Parts Rejected 10 | . . . . . . . . . . 1 4 . . 1 . . . 1 . . . 1 . . . . . 2 Parts Fused 8 | . 1 . . . . . . . . . . 1 . . . . . . . . . . . 1 3 2 . . Data Loss (minor) 51 | . 1 . . . . . . . . 12 . 9 . . . 1 . 1 1 1 . 4 1 2 7 9 . 2 Data Loss (major) 13 | . 1 . . . . . . . 1 1 1 4 . 1 . . . . . . . 1 . 1 1 . . 1 Misfires 19 | . 1 . . . . . . . . 3 6 1 . . . . . . 1 1 . . . 2 1 2 1 . Alerts 7 | . . . . . . . . . 1 1 1 2 . 1 . . . . . . . 1 . . . . . . Misdirections 21 | . . . . . . . . . . . . 1 . . . . . . . . . . . . 1 1 . 18 Weapon Failures 24 | . . . . . . . . . 1 4 3 4 . . . . . . . . . . . 2 2 6 . 2 Overload Shots . | . . . . . . . . . . . . . . . . . . . . . . . . . . . . . Overflow Damage 2748 | . 100 . 18 . . . . 23 1 28 68 108 . 123 . 205 185 . . 194 325 243 . 211 459 306 . 151 Projectiles 2410 | . . . . . . . . 4 . 15 68 55 . 123 . 205 185 . . 194 325 243 . 211 459 276 . 47 Explosions 338 | . 100 . 18 . . . . 19 1 13 . 53 . . . . . . . . . . . . . 30 . 104 Melee . | . . . . . . . . . . . . . . . . . . . . . . . . . . . . . Knockbacks 96 | . 1 1 . . . . 1 . . 7 6 6 . 2 . 8 5 . . 2 8 12 . 12 13 10 . 2 Impact 2 | . . 1 . . . . 1 . . . . . . . . . . . . . . . . . . . . . Kinetic 87 | . 1 . . . . . . . . 6 5 6 . 2 . 8 5 . . 2 8 11 . 12 10 9 . 2 Secondary 7 | . . . . . . . . . . 1 1 . . . . . . . . . . 1 . . 3 1 . . Self-Inflicted Damage 400 | . 133 . . . . . . 74 20 . . . . . . . . . . . . . . . . 37 . 136 Shots 9 | . 3 . . . . . . 2 1 . . . . . . . . . . . . . . . . 1 . 2 Rammed 42 | . 4 1 7 6 10 . 6 . . . 1 . . . . . . . . . 1 . . . 5 . . 1 Targets Rammed 50 | . 4 1 7 7 13 . 6 . . . 1 . . . . 1 . . . . 1 . . . 6 1 . 2 Kicked . | . . . . . . . . . . . . . . . . . . . . . . . . . . . . . Crushed 8 | . . . . 1 3 . . . . . . . . . . 1 . . . . . . . . 1 1 . 1 Highest Temperature 490 | 100 298 6 163 74 69 353 246 193 7 327 270 490 205 402 207 336 198 197 243 390 415 359 . 410 222 371 84 466 Average Temperature 89 | 52 88 6 32 24 18 92 56 58 4 106 97 111 78 93 105 119 104 106 76 108 98 99 . 115 54 101 40 133 Received Heat Transfer 4852 | . 219 12 214 56 270 720 603 225 48 861 141 201 . 120 . 198 45 . . 59 . 241 . 160 152 61 . 246 Effects 26 | . . . . . . 4 . . . 3 . 5 . 1 . 1 . . . 1 1 . . . . 2 . 8 Shutdowns 5 | . . . . . . 1 . . . . . . . 1 . . . . . . 1 . . . . 1 . 1 Energy Bleed 5 | . . . . . . . . . . 1 . . . . . . . . . 1 . . . . . 1 . 2 Interference 5 | . . . . . . 2 . . . 2 . . . . . 1 . . . . . . . . . . . . Matter Decay 2 | . . . . . . 1 . . . . . . . . . . . . . . . . . . . . . 1 Short Circuit 2 | . . . . . . . . . . . . 1 . . . . . . . . . . . . . . . 1 Damage (minor) 1 | . . . . . . . . . . . . 1 . . . . . . . . . . . . . . . . Damage (major) 6 | . . . . . . . . . . . . 3 . . . . . . . . . . . . . . . 3 Siege Activations 38 | . . . . . . . . . . . . . . . . . 1 . . 2 5 10 . 7 5 8 . . Total Turns 533 | . . . . . . . . . . . . . . . . . 23 . . 26 32 134 . 107 85 126 . . Longest Duration 48 | . . . . . . . . . . . . . . . . . 23 . . 23 18 48 . 31 29 34 . . Robots Corrupted 1 | . . . . . . . . . . . . . . 1 . . . . . . . . . . . . . . Combat Hostiles 1 | . . . . . . . . . . . . . . 1 . . . . . . . . . . . . . . Parts Fried 4 | . . . . . . . . . 2 . . . . 1 . . . . . . . . . . . 1 . . Impact Corruptions 1 | . . . . . . . . . . . . . . . . . . . . . . . . . 1 . . . Robots Melted 1 | . . . . . . . . . . . . . . . . . . . . . . 1 . . . . . . Combat Hostiles 1 | . . . . . . . . . . . . . . . . . . . . . . 1 . . . . . . Parts Melted 12 | 3 . . . . . . 1 . . 1 . . . . . . 1 . . . . 3 . 2 . 1 . . Heat Transferred 10257 | 259 555 . . . . . 1110 111 . 1480 . 222 74 401 . 222 444 . 259 111 333 1460 . 552 629 1406 . 629 Parts Sabotaged 8 | . . . . . . . . . . . . . . . . . . . . . . . . . . 8 . . Parts Stolen . | . . . . . . . . . . . . . . . . . . . . . . . . . . . . . Parts Stripped . | . . . . . . . . . . . . . . . . . . . . . . . . . . . . . Power Chain Reactions 1 | . . . . . . . . . . . . . . 1 . . . . . . . . . . . . . . Alert | -11 -10 -10 -9 -9 -8 -8 -8 -8 -7 -7 -7 -7 -6 -6 -6 -6 -5 -5 -5 -5 -4 -4 -4 -4 -3 -3 -3 -2 ------- Run | Yrd Mat Min Mat Min Mat Gar Mat Gar Fac Gar Fac Gar Fac Gar Fac Gar Fac Was Fac Gar Fac Gar Fac Gar Res Arm Lab Res Peak Influence 1552 | 15 259 79 779 463 183 997 485 490 410 975 568 1234 662 1269 665 1552 1103 457 359 1466 774 1168 613 1234 736 570 . 705 Initial 814 | . 9 59 . 303 . 94 485 130 256 170 511 296 647 316 665 325 814 359 179 153 744 172 613 429 693 306 . . Average 486 | 7 117 35 347 204 67 602 164 365 259 729 427 756 555 789 638 850 921 341 238 1038 392 688 613 903 593 378 . 230 Maximum Alert Level 4 | . 1 . 3 2 . 3 2 2 2 3 2 4 2 4 2 4 4 2 1 4 3 4 2 4 3 2 . 3 Low Security (%) 24 | 100 82 100 35 54 100 9 61 22 . 5 . . . . . . . . 12 7 3 15 . . . . . 52 Level 1 23 | . 17 . 29 39 . 14 31 16 94 3 44 11 . 11 . 11 . 83 87 7 64 6 . . . 62 . 33 Level 2 26 | . . . 27 6 . 44 6 61 5 20 55 29 100 26 100 27 . 16 . 4 13 25 100 22 82 37 . 14 Level 3 19 | . . . 7 . . 31 . . . 70 . 40 . 44 . 30 93 . . 20 18 40 . 55 17 . . . Level 4 6 | . . . . . . . . . . . . 18 . 17 . 30 6 . . 59 . 12 . 21 . . . . Level 5 . | . . . . . . . . . . . . . . . . . . . . . . . . . . . . . High Security . | . . . . . . . . . . . . . . . . . . . . . . . . . . . . . Max Security . | . . . . . . . . . . . . . . . . . . . . . . . . . . . . . Squads Dispatched 54 | . 3 . 5 . 3 . 4 . 4 . 3 . 2 . 1 . 4 . 2 . 4 . . . 5 5 . 9 Investigation 13 | . 1 . 1 . 2 . 2 . 2 . 1 . . . . . . . . . 1 . . . . . . 3 Extermination 13 | . . . . . . . . . 1 . 2 . . . . . 1 . . . 3 . . . 1 3 . 2 Reinforcement 23 | . 2 . 4 . 1 . 1 . 1 . . . 1 . . . 2 . 1 . . . . . 4 2 . 4 Assault 3 | . . . . . . . . . . . . . 1 . 1 . 1 . . . . . . . . . . . Garrison 2 | . . . . . . . 1 . . . . . . . . . . . 1 . . . . . . . . . Intercept . | . . . . . . . . . . . . . . . . . . . . . . . . . . . . . Searches Triggered 1 | . . . . . . . . . . . . . . . . . . . . . . . . . . . . 1 Construction Impeded 3 | . . . . . . . 1 . 1 . . . . . . . 1 . . . . . . . . . . . Haulers Reinforced 1 | . . . . . . . . . . . . . 1 . . . . . . . . . . . . . . . Active Scanning Responses . | . . . . . . . . . . . . . . . . . . . . . . . . . . . . . Cargo Convoy Interrupts 1 | . . . . . . . . . . . . . . . . . . . . . . . . . 1 . . . Stealth | -11 -10 -10 -9 -9 -8 -8 -8 -8 -7 -7 -7 -7 -6 -6 -6 -6 -5 -5 -5 -5 -4 -4 -4 -4 -3 -3 -3 -2 --------- Run | Yrd Mat Min Mat Min Mat Gar Mat Gar Fac Gar Fac Gar Fac Gar Fac Gar Fac Was Fac Gar Fac Gar Fac Gar Res Arm Lab Res Distress Signals 25 | . 2 . 4 . 2 . 7 . 1 1 1 . . . . . 1 . . . . . . . . 1 . 5 Communications Jammed 70 | . . . . . . . . . . . . . 12 . . . . . . . 13 . . . 8 30 . 7 Distress Signals 70 | . . . . . . . . . . . . . 12 . . . . . . . 13 . . . 8 30 . 7 Times Spotted 663 | . 37 1 73 14 21 30 36 11 4 31 16 30 1 26 . 23 16 5 2 17 20 34 . 34 28 44 . 109 Peak Tracking Total 25 | . 5 . 6 3 5 5 6 4 2 12 4 6 1 3 1 3 7 1 1 3 6 7 . 5 3 7 . 25 Tactical Retreats 46 | . 4 . 4 . 2 2 1 1 . 2 . 1 . 4 . 2 2 . . . 1 3 . . . 2 . 15 Traps | -11 -10 -10 -9 -9 -8 -8 -8 -8 -7 -7 -7 -7 -6 -6 -6 -6 -5 -5 -5 -5 -4 -4 -4 -4 -3 -3 -3 -2 ------- Run | Yrd Mat Min Mat Min Mat Gar Mat Gar Fac Gar Fac Gar Fac Gar Fac Gar Fac Was Fac Gar Fac Gar Fac Gar Res Arm Lab Res Traps Triggered 59 | . 3 . . . 1 3 2 7 2 3 1 5 . 9 . 7 1 . . 3 . 3 . 1 1 . . 7 Indirectly 1 | . 1 . . . . . . . . . . . . . . . . . . . . . . . . . . . Trap Hack Attempts 11 | . . . . . . . . . . . . . . 8 . . . . . 3 . . . . . . . . Triggered . | . . . . . . . . . . . . . . . . . . . . . . . . . . . . . Disarmed 3 | . . . . . . . . . . . . . . 2 . . . . . 1 . . . . . . . . Reprogrammed . | . . . . . . . . . . . . . . . . . . . . . . . . . . . . . Reused . | . . . . . . . . . . . . . . . . . . . . . . . . . . . . . Traps Extracted . | . . . . . . . . . . . . . . . . . . . . . . . . . . . . . Installed . | . . . . . . . . . . . . . . . . . . . . . . . . . . . . . Triggered 2 | . . . . . . . . . . . . . . . . . . . . . . . . . 2 . . . Machines | -11 -10 -10 -9 -9 -8 -8 -8 -8 -7 -7 -7 -7 -6 -6 -6 -6 -5 -5 -5 -5 -4 -4 -4 -4 -3 -3 -3 -2 ---------- Run | Yrd Mat Min Mat Min Mat Gar Mat Gar Fac Gar Fac Gar Fac Gar Fac Gar Fac Was Fac Gar Fac Gar Fac Gar Res Arm Lab Res Machines Disabled 67 | . 2 . 3 . 1 2 2 1 2 4 1 8 . 5 . 5 . . . 6 1 4 . 5 1 10 1 3 Max in Single Turn 2 | . 2 . 1 . 1 1 1 1 1 1 1 1 . 1 . 1 . . . 1 1 1 . 1 1 1 1 1 Garrison Access 1 | . . . . . . . . . . . . . . . . . . . . . . . . . 1 . . . Garrison Relay 26 | . . . . . . 2 . 1 . 2 . 2 . 2 . 5 . . . 3 . 4 . 5 . . . . Machines Repaired . | . . . . . . . . . . . . . . . . . . . . . . . . . . . . . Machines Dismantled . | . . . . . . . . . . . . . . . . . . . . . . . . . . . . . Machines Sabotaged . | . . . . . . . . . . . . . . . . . . . . . . . . . . . . . Overloaded Fab Kills . | . . . . . . . . . . . . . . . . . . . . . . . . . . . . . Hacking | -11 -10 -10 -9 -9 -8 -8 -8 -8 -7 -7 -7 -7 -6 -6 -6 -6 -5 -5 -5 -5 -4 -4 -4 -4 -3 -3 -3 -2 --------- Run | Yrd Mat Min Mat Min Mat Gar Mat Gar Fac Gar Fac Gar Fac Gar Fac Gar Fac Was Fac Gar Fac Gar Fac Gar Res Arm Lab Res Machines Accessed 95 | . 8 1 9 . 3 3 8 2 5 . 3 2 4 4 2 2 . . 3 1 7 2 2 3 7 4 . 10 Terminals 65 | . 6 . 7 . 1 3 7 2 2 . . 2 2 4 . 2 . . 1 1 3 2 1 3 4 4 . 8 Fabricators 9 | . . . . . . . . . 1 . 1 . 1 . . . . . 1 . 2 . . . 2 . . 1 Repair Stations 5 | . 1 . 2 . 1 . . . 1 . . . . . . . . . . . . . . . . . . . Recycling Units 4 | . 1 . . . . . . . . . 1 . . . 1 . . . . . 1 . . . . . . . Scanalyzers . | . . . . . . . . . . . . . . . . . . . . . . . . . . . . . Garrison Access 11 | . . . . . 1 . 1 . 1 . 1 . 1 . 1 . . . 1 . 1 . 1 . 1 . . 1 Total Hacks 210 | . 23 1 33 . 8 7 19 2 13 . 6 3 6 7 2 4 . . 4 2 17 3 3 5 9 10 . 23 Successful 84 | . 12 1 20 . 5 2 8 2 7 . 2 1 1 . 1 1 . . 3 1 6 . 1 1 2 4 . 3 Failed 125 | . 11 . 13 . 3 5 10 . 6 . 4 2 5 7 1 3 . . 1 1 11 3 2 4 7 6 . 20 Catastrophic 38 | . 2 . 3 . 1 1 2 . 1 . 1 2 2 4 . 1 . . . . 4 2 1 . 3 3 . 5 Database Lockouts 1 | . . . . . . . 1 . . . . . . . . . . . . . . . . . . . . . Manual 57 | . 6 . 4 . 2 . 11 . 4 . . . 1 . . . . . 1 . 10 . 2 . 1 7 . 8 Terminals 140 | . 14 . 20 . 2 7 18 2 4 . . 3 3 7 . 4 . . 1 2 10 3 2 5 5 10 . 18 Fabricators 19 | . . . . . . . . . 3 . 2 . 2 . . . . . 2 . 4 . . . 3 . . 3 Repair Stations 26 | . 7 . 13 . 4 . . . 2 . . . . . . . . . . . . . . . . . . . Recycling Units 8 | . 2 . . . . . . . . . 3 . . . 1 . . . . . 2 . . . . . . . Scanalyzers . | . . . . . . . . . . . . . . . . . . . . . . . . . . . . . Garrison Access 16 | . . . . . 2 . 1 . 4 . 1 . 1 . 1 . . . 1 . 1 . 1 . 1 . . 2 Terminal Hacks 35 | . 4 1 9 . 1 2 7 2 . . . 1 . . . 1 . . . 1 3 . . 1 . 2 . . Robot Analysis 2 | . . . . . . . 2 . . . . . . . . . . . . . . . . . . . . . Prototype ID Bank 2 | . . . 1 . 1 . . . . . . . . . . . . . . . . . . . . . . . Open Door 1 | . . 1 . . . . . . . . . . . . . . . . . . . . . . . . . . Branch Access Points 1 | . . . 1 . . . . . . . . . . . . . . . . . . . . . . . . . Emergency Access Points 3 | . . . . . . . . 1 . . . . . . . 1 . . . . . . . 1 . . . . Terminal Index 2 | . 1 . . . . . . . . . . . . . . . . . . . 1 . . . . . . . Unreport Threat 7 | . . . 1 . . . 3 . . . . . . . . . . . . . 2 . . . . 1 . . Locate Traps 3 | . . . 2 . . . 1 . . . . . . . . . . . . . . . . . . . . . Transport Status 1 | . . . 1 . . . . . . . . . . . . . . . . . . . . . . . . . Hauler Manifests 3 | . 1 . 1 . . . 1 . . . . . . . . . . . . . . . . . . . . . Registered Components 1 | . . . 1 . . . . . . . . . . . . . . . . . . . . . . . . . Zone Layout 4 | . 2 . 1 . . . . . . . . . . . . . . . . . . . . . . 1 . . Garrison Registry 3 | . . . . . . 1 . 1 . . . . . . . . . . . 1 . . . . . . . . Patrol Navigation 1 | . . . . . . . . . . . . 1 . . . . . . . . . . . . . . . . Security Stations 1 | . . . . . . 1 . . . . . . . . . . . . . . . . . . . . . . Fabricator Hacks 6 | . . . . . . . . . 1 . 1 . . . . . . . 1 . 1 . . . 1 . . 1 Network Status 6 | . . . . . . . . . 1 . 1 . . . . . . . 1 . 1 . . . 1 . . 1 Repair Station Hacks 20 | . 6 . 10 . 2 . . . 2 . . . . . . . . . . . . . . . . . . . Scan Component 11 | . 3 . 6 . 1 . . . 1 . . . . . . . . . . . . . . . . . . . Repair 9 | . 3 . 4 . 1 . . . 1 . . . . . . . . . . . . . . . . . . . Recycling Unit Hacks 1 | . . . . . . . . . . . . . . . . . . . . . 1 . . . . . . . Retrieve Components 1 | . . . . . . . . . . . . . . . . . . . . . 1 . . . . . . . Scanalyzer . | . . . . . . . . . . . . . . . . . . . . . . . . . . . . . Garrison Access Hacks 11 | . . . . . 1 . 1 . 2 . 1 . 1 . 1 . . . 1 . 1 . 1 . 1 . . . Unlock Access 9 | . . . . . 1 . 1 . 1 . 1 . 1 . 1 . . . 1 . 1 . 1 . . . . . Seal Access 1 | . . . . . . . . . . . . . . . . . . . . . . . . . 1 . . . Coupler Status 1 | . . . . . . . . . 1 . . . . . . . . . . . . . . . . . . . Unauthorized Hacks 11 | . 2 . 1 . 1 . . . 2 . . . . . . . . . 1 . . . . . . 2 . 2 Terminals 5 | . 2 . 1 . . . . . . . . . . . . . . . . . . . . . . 2 . . Track 1 | . 1 . . . . . . . . . . . . . . . . . . . . . . . . . . . Assimilate 1 | . . . 1 . . . . . . . . . . . . . . . . . . . . . . . . . Botnet 3 | . 1 . . . . . . . . . . . . . . . . . . . . . . . . 2 . . Fabricators 3 | . . . . . . . . . 1 . . . . . . . . . 1 . . . . . . . . 1 Haulers 3 | . . . . . . . . . 1 . . . . . . . . . 1 . . . . . . . . 1 Repair Stations 1 | . . . . . 1 . . . . . . . . . . . . . . . . . . . . . . . Patch 1 | . . . . . 1 . . . . . . . . . . . . . . . . . . . . . . . Recycling Units . | . . . . . . . . . . . . . . . . . . . . . . . . . . . . . Scanalyzers . | . . . . . . . . . . . . . . . . . . . . . . . . . . . . . Garrison Access 2 | . . . . . . . . . 1 . . . . . . . . . . . . . . . . . . 1 Eject 2 | . . . . . . . . . 1 . . . . . . . . . . . . . . . . . . 1 Data Cores Recovered . | . . . . . . . . . . . . . . . . . . . . . . . . . . . . . Used . | . . . . . . . . . . . . . . . . . . . . . . . . . . . . . Hacking Detections 82 | . 7 . 9 . 2 2 8 2 5 . 2 2 3 4 1 1 . . 2 1 6 2 2 3 6 4 . 8 Full Trace Events 13 | . . . 2 . . 1 2 . 1 . 1 1 . 1 . . . . . . 1 1 . . . . . 2 Feedback Events . | . . . . . . . . . . . . . . . . . . . . . . . . . . . . . Feedback Blocked . | . . . . . . . . . . . . . . . . . . . . . . . . . . . . . Robot Schematics Acquired . | . . . . . . . . . . . . . . . . . . . . . . . . . . . . . Robots Built . | . . . . . . . . . . . . . . . . . . . . . . . . . . . . . Authchips . | . . . . . . . . . . . . . . . . . . . . . . . . . . . . . Time . | . . . . . . . . . . . . . . . . . . . . . . . . . . . . . Total Robot Build Rating . | . . . . . . . . . . . . . . . . . . . . . . . . . . . . . Part Schematics Acquired . | . . . . . . . . . . . . . . . . . . . . . . . . . . . . . Parts Built . | . . . . . . . . . . . . . . . . . . . . . . . . . . . . . Authchips . | . . . . . . . . . . . . . . . . . . . . . . . . . . . . . Time . | . . . . . . . . . . . . . . . . . . . . . . . . . . . . . Total Part Build Rating . | . . . . . . . . . . . . . . . . . . . . . . . . . . . . . Parts Repaired 9 | . 3 . 4 . 1 . . . 1 . . . . . . . . . . . . . . . . . . . Time 230 | . 78 . 104 . 26 . . . 22 . . . . . . . . . . . . . . . . . . . Parts Recycled . | . . . . . . . . . . . . . . . . . . . . . . . . . . . . . Recycled Matter . | . . . . . . . . . . . . . . . . . . . . . . . . . . . . . Retrieved Matter . | . . . . . . . . . . . . . . . . . . . . . . . . . . . . . Retrieved Components 1 | . . . . . . . . . . . . . . . . . . . . . 1 . . . . . . . Parts Scanalyzed . | . . . . . . . . . . . . . . . . . . . . . . . . . . . . . Part Schematics Acquired . | . . . . . . . . . . . . . . . . . . . . . . . . . . . . . Parts Damaged . | . . . . . . . . . . . . . . . . . . . . . . . . . . . . . Bothacking | -11 -10 -10 -9 -9 -8 -8 -8 -8 -7 -7 -7 -7 -6 -6 -6 -6 -5 -5 -5 -5 -4 -4 -4 -4 -3 -3 -3 -2 ------------ Run | Yrd Mat Min Mat Min Mat Gar Mat Gar Fac Gar Fac Gar Fac Gar Fac Gar Fac Was Fac Gar Fac Gar Fac Gar Res Arm Lab Res Used RIF Installer 13 | . . . . . . 2 . 2 . 1 . . . 1 . 2 . . . 1 . 2 . 2 . . . . Hotswap 1 | . . . . . . . . . . . . . . . . 1 . . . . . . . . . . . . Code Merge 2 | . . . . . . . . . . . . . . . . 1 . . . . . 1 . . . . . . Threat Obfuscator 1 | . . . . . . . . . . . . . . . . . . . . . . . . 1 . . . . Robot Detection 1 | . . . . . . . . 1 . . . . . . . . . . . . . . . . . . . . Watcher Feeds 1 | . . . . . . . . . . . . . . . . . . . . 1 . . . . . . . . Patrol Navigation 1 | . . . . . . 1 . . . . . . . . . . . . . . . . . . . . . . Structural Interface 1 | . . . . . . . . . . . . . . 1 . . . . . . . . . . . . . . Program Shield 1 | . . . . . . . . . . 1 . . . . . . . . . . . . . . . . . . Autooverride 1 | . . . . . . . . 1 . . . . . . . . . . . . . . . . . . . . Autoassimilate 1 | . . . . . . . . . . . . . . . . . . . . . . 1 . . . . . . Crosswire 1 | . . . . . . . . . . . . . . . . . . . . . . . . 1 . . . . Robots Hacked 86 | . . . . . . . . . . 9 1 4 . 4 2 7 2 5 . 2 4 9 . 16 7 9 . 5 Non-combat 6 | . . . . . . . . . . . . . . . 1 . 1 . . . 1 . . . 2 1 . . Combat 80 | . . . . . . . . . . 9 1 4 . 4 1 7 1 5 . 2 3 9 . 16 5 8 . 5 Autooverrided 12 | . . . . . . . . . . 4 . . . . 1 2 . . . . . 1 . 1 1 1 . 1 Autoassimilated 12 | . . . . . . . . . . . . . . . . . . . . . . 3 . 3 2 1 . 3 Robot Hacks Applied 66 | . . . . . . . . . . 5 2 4 . 4 1 5 2 5 . 2 5 5 . 12 5 7 . 2 drop_inventory 1 | . . . . . . . . . . . . . . . . . . . . . . . . . 1 . . . purge_threat 1 | . . . . . . . . . . . . . . . . . . . . . 1 . . . . . . . block_reporting 2 | . . . . . . . . . . . . . . . . . . . . . 1 . . . . 1 . . map_route 1 | . . . . . . . . . . . . . . . . . . . . . . . . . 1 . . . ignore_targets 5 | . . . . . . . . . . . . . . . . . . 5 . . . . . . . . . . emergency_deploy 1 | . . . . . . . . . . . . . . . . . 1 . . . . . . . . . . . find_garrison 1 | . . . . . . . . . . . 1 . . . . . . . . . . . . . . . . . amplify_resonance 10 | . . . . . . . . . . 2 . 1 . . . . . . . . 1 2 . 4 . . . . disable_weapons 1 | . . . . . . . . . . . . . . . . . . . . . 1 . . . . . . . reboot_system 5 | . . . . . . . . . . . 1 . . . . . . . . . 1 . . . . 3 . . overwrite_iff 11 | . . . . . . . . . . 2 . 1 . 2 . 1 . . . . . 2 . 3 . . . . formatsys_low 2 | . . . . . . . . . . . . . . . 1 . 1 . . . . . . . . . . . formatsys_high 25 | . . . . . . . . . . 1 . 2 . 2 . 4 . . . 2 . 1 . 5 3 3 . 2 Relay Couplers Released 117 | . . . . . . 12 . 4 3 7 . 10 . 9 . 21 . . . 10 . 12 . 21 4 . . 4 Ejected 7 | . . . . . . . . . 3 . . . . . . . . . . . . . . . . . . 4 Machine Destruction 102 | . . . . . . 8 . 4 . 7 . 10 . 9 . 21 . . . 10 . 12 . 21 . . . . Programmers 8 | . . . . . . 4 . . . . . . . . . . . . . . . . . . 4 . . . Attached 39 | . . . . . . . . . 1 2 1 1 1 4 1 5 2 . . 1 . 4 . 6 . 3 . 7 Crosswired 2 | . . . . . . . . . . . . . . . . . . . . . . . . 1 . . . 1 Merged Code Value 219 | . . . . . . . . . . . . . . . . 14 . . . 51 . 65 . 89 . . . . Fabnet Peak Effective % . | . . . . . . . . . . . . . . . . . . . . . . . . . . . . . Robots Rewired 14 | . . . . . . . . . . . . . . 3 . 3 1 . . . . . . . . 7 . . Allies Hacked 1 | . . . . . . . . . . . . . . . . 1 . . . . . . . . . . . . Hacks Repelled . | . . . . . . . . . . . . . . . . . . . . . . . . . . . . . Allies | -11 -10 -10 -9 -9 -8 -8 -8 -8 -7 -7 -7 -7 -6 -6 -6 -6 -5 -5 -5 -5 -4 -4 -4 -4 -3 -3 -3 -2 -------- Run | Yrd Mat Min Mat Min Mat Gar Mat Gar Fac Gar Fac Gar Fac Gar Fac Gar Fac Was Fac Gar Fac Gar Fac Gar Res Arm Lab Res Total Allies 109 | . . . . 3 . . . . . 7 . 3 . 7 2 10 2 20 . 4 . 7 . 12 5 22 . 5 Largest Group 19 | . . . . 3 3 . . . . 2 . 2 1 3 5 4 5 19 17 16 . 2 . 2 2 12 . 2 Highest-Rated Group 684 | . . . . 40 40 . . . . 32 . 64 32 58 100 119 153 684 584 628 . 116 . 98 128 620 . 128 Highest-Rated Ally 116 | . . . . 16 16 . . . . 16 . 32 32 32 41 41 49 50 46 80 . 116 . 58 64 89 . 64 Total Orders . | . . . . . . . . . . . . . . . . . . . . . . . . . . . . . Ally Attacks 735 | . . . . . 25 . . . . 12 . 23 2 24 2 60 24 95 51 217 . 17 . 54 24 87 . 18 Total Damage 18349 | . . . . . 245 . . . . 175 . 809 58 425 16 1275 537 3108 881 5044 . 503 . 1491 951 2278 . 553 Kills 99 | . . . . . 2 . . . . 3 . 9 . 4 . 12 4 6 4 32 . 2 . 3 4 12 . 2 Allies Corrupted 6 | . . . . . . . . . . . . . . . . . . . . . . . . . 1 4 . 1 Allies Melted . | . . . . . . . . . . . . . . . . . . . . . . . . . . . . . Intel | -11 -10 -10 -9 -9 -8 -8 -8 -8 -7 -7 -7 -7 -6 -6 -6 -6 -5 -5 -5 -5 -4 -4 -4 -4 -3 -3 -3 -2 ------- Run | Yrd Mat Min Mat Min Mat Gar Mat Gar Fac Gar Fac Gar Fac Gar Fac Gar Fac Was Fac Gar Fac Gar Fac Gar Res Arm Lab Res Robot Analysis Total 2 | . . . . . . . 2 . . . . . . . . . . . . . . . . . . . . . Derelict Logs Recovered 3 | . . 1 . 2 . . . . . . . . . . . . . . . . . . . . . . . . Drone Launches . | . . . . . . . . . . . . . . . . . . . . . . . . . . . . . Drone Recoveries . | . . . . . . . . . . . . . . . . . . . . . . . . . . . . . Exploration | -11 -10 -10 -9 -9 -8 -8 -8 -8 -7 -7 -7 -7 -6 -6 -6 -6 -5 -5 -5 -5 -4 -4 -4 -4 -3 -3 -3 -2 ------------- Run | Yrd Mat Min Mat Min Mat Gar Mat Gar Fac Gar Fac Gar Fac Gar Fac Gar Fac Was Fac Gar Fac Gar Fac Gar Res Arm Lab Res Turns Passed 36914 | 86 2197 766 3900 2425 1191 1736 1629 950 755 1719 1108 1810 726 2191 461 2178 577 604 435 1067 1211 1463 84 1429 1434 1534 54 1194 Spaces Moved 15580 | 38 922 461 1124 727 386 624 497 269 251 578 408 628 281 791 183 760 278 283 251 590 582 672 52 667 621 674 27 1955 Core 109 | . . . . . . . . . . . . . . . . . . . . . . . . . . . . 109 Treads 13492 | 38 922 461 1124 727 386 624 497 269 251 439 408 472 281 791 183 760 278 283 251 590 582 672 52 667 621 674 27 162 Legs . | . . . . . . . . . . . . . . . . . . . . . . . . . . . . . Wheels 295 | . . . . . . . . . . 139 . 156 . . . . . . . . . . . . . . . . Hover . | . . . . . . . . . . . . . . . . . . . . . . . . . . . . . Flight 1684 | . . . . . . . . . . . . . . . . . . . . . . . . . . . . 1684 Fastest Speed 13 | 160 160 160 145 320 230 230 230 235 240 150 240 210 246 246 246 246 161 161 161 153 157 157 161 161 161 160 157 13 Average Speed 196 | 160 188 160 296 320 230 230 248 314 240 234 241 239 246 246 246 247 161 161 161 160 157 166 161 161 164 171 157 45 Slowest Speed 320 | 160 320 160 320 320 235 235 315 320 240 320 320 255 246 246 246 250 161 161 161 161 157 241 161 161 166 239 157 233 Overloaded Moves 68 | . . . . . . . . . . . . . . . . . . . . . . . . . . . . 68 Propulsion Burnouts . | . . . . . . . . . . . . . . . . . . . . . . . . . . . . . Robots Hopped 30 | . . . . . . . . . . . . . . . . . . . . . . . . . . . . 30 Cave-ins Triggered . | . . . . . . . . . . . . . . . . . . . . . . . . . . . . . Exploration Rate (%) 51 | 3 98 97 93 98 28 75 50 45 9 58 11 71 8 93 9 86 9 89 10 80 23 86 2 92 24 65 6 70 Regions Visited 28 Branch Regions 4 Pre-discovered Areas . | . . . . . . . . . . . . . . . . . . . . . . . . . . . . . Known Exits Taken 11 | . . . 1 . 1 . 1 . 1 . 1 . 1 . 1 . . . 1 . 1 . 1 . . . 1 . Unknown Exits Taken 6 | 1 1 1 . 1 . . . . . . . . . . . . . . . . . . . . 1 1 . . Scrap Searched 2 | . . 1 . 1 . . . . . . . . . . . . . . . . . . . . . . . . Spaces Dug 141 | . . . . . . . 1 . 6 9 1 1 2 . . . 5 . 2 3 8 . . . 31 16 . 56 Terrain Destroyed 644 | . 50 . 30 . . 20 1 19 6 42 8 33 3 14 . 34 21 . 3 5 24 20 . 20 54 61 . 176 Melee . | . . . . . . . . . . . . . . . . . . . . . . . . . . . . . Projectile 252 | . . . . . . . 1 . 6 8 8 10 3 3 . 19 8 . 3 5 24 20 . 20 54 35 . 25 AOE 392 | . 50 . 30 . . 20 . 19 . 34 . 23 . 11 . 15 13 . . . . . . . . 26 . 151 Terrain Rammed . | . . . . . . . . . . . . . . . . . . . . . . . . . . . . . Walls Destroyed . | . . . . . . . . . . . . . . . . . . . . . . . . . . . . . Machines Disabled . | . . . . . . . . . . . . . . . . . . . . . . . . . . . . . Actions | -11 -10 -10 -9 -9 -8 -8 -8 -8 -7 -7 -7 -7 -6 -6 -6 -6 -5 -5 -5 -5 -4 -4 -4 -4 -3 -3 -3 -2 --------- Run | Yrd Mat Min Mat Min Mat Gar Mat Gar Fac Gar Fac Gar Fac Gar Fac Gar Fac Was Fac Gar Fac Gar Fac Gar Res Arm Lab Res Total 19547 | 50 1197 484 1454 762 569 771 719 328 354 768 466 798 309 955 194 958 349 427 269 683 802 886 52 892 906 929 37 2179 Wait 1459 | . 134 9 134 . 80 29 70 6 52 11 1 15 . 28 . 50 20 130 7 33 129 100 . 93 154 96 . 78 Move 15504 | 37 921 460 1123 726 385 623 497 268 250 577 408 627 281 790 183 759 278 282 251 589 582 671 52 666 620 673 26 1899 Hop 26 | . . . . . . . . . . . . . . . . . . . . . . . . . . . . 26 Pick Up 217 | . 16 4 27 2 10 9 17 2 6 14 4 9 9 8 3 8 1 2 1 7 7 9 . 6 12 11 . 13 Fast Attach 142 | 1 6 . 7 1 3 1 7 1 1 10 8 9 1 5 1 4 . 2 . 5 9 4 . 9 2 8 . 37 Attach 104 | . 1 . 5 1 3 3 4 1 3 8 . 9 2 3 . 4 1 . . 1 3 3 . 5 10 10 4 20 Detach 28 | . . . . . . . . . . 1 . 6 . 1 . . . . . . 2 1 . 1 1 . 3 12 Swap 297 | 3 12 1 16 2 14 20 23 13 7 11 8 14 1 13 1 16 13 2 1 10 17 24 . 25 13 15 2 . Drop 208 | 2 5 5 23 1 15 10 21 2 3 13 8 7 9 13 4 11 . 2 . 11 12 4 . 6 4 2 . 15 Fire 1349 | 7 98 4 112 22 46 70 74 25 32 117 28 86 6 53 . 65 35 7 9 18 38 68 . 77 82 104 2 64 Melee 21 | . . . . . . . . . . . . . . 6 1 1 . . . 1 2 . . 2 2 6 . . Ram 1 | . . . . . . . . . . . . . . . . . . . . . . . . . . . . 1 Kick . | . . . . . . . . . . . . . . . . . . . . . . . . . . . . . Crush 49 | . 4 1 7 7 13 . 6 . . . 1 . . . . 1 . . . . 1 . . . 6 1 . 1 Escape Stasis 84 | . . . . . . 6 . 10 . 6 . 16 . 16 . 12 . . . 4 . 2 . . . . . 12 Rewire 47 | . . . . . . . . . . . . . . 11 1 27 1 . . 1 . . . 2 . 3 . 1 Trap 11 | . . . . . . . . . . . . . . 8 . . . . . 3 . . . . . . . . Miscellaneous . | . . . . . . . . . . . . . . . . . . . . . . . . . . . . . Route ------- -11/Scrapyard -10/Materials (discovered 4 exits: *Mat x3 / *Min) -10/Mines (discovered 2 exits: *Mat x2) -9/Materials (discovered 6 exits: *Mat x3 / *Min x2 / *Sto) -9/Mines (discovered 4 exits: *Mat x2 / [*Exi] / [*Zio]) -8/Materials (discovered 2 exits: *Fac / Gar) -8/Garrison (discovered 4 exits: *Fac x3 / *Mat) -8/Materials (discovered 2 exits: *Fac / Gar) -8/Garrison (discovered 4 exits: *Fac x3 / [*Mat]) -7/Factory -7/Garrison (discovered 3 exits: *Fac x2 / *Fac) -7/Factory (discovered 3 exits: *Fac / [*Low] / Gar) -7/Garrison (discovered 3 exits: *Fac x3) -6/Factory -6/Garrison (discovered 4 exits: [*Fac x3] / *Fac) -6/Factory -6/Garrison (discovered 3 exits: [*Fac x3]) -5/Factory -5/Waste -5/Factory -5/Garrison (discovered 3 exits: *Fac x3) -4/Factory -4/Garrison (discovered 3 exits: *Fac x3) -4/Factory -4/Garrison (discovered 3 exits: *Res x3) -3/Research (discovered 3 exits: *Res x2 / *Arm) -3/Armory (discovered 2 exits: *Res / *Lab) -3/Lab -2/Research (discovered 1 exit: *Acc) History --------- Turn | Location | Event 7 | -11/Scrapyard | Discovered new exit (range 3) 87 | -11/Scrapyard | Entered Materials 304 | -10/Materials | Build established: Mutant 403 | -10/Materials | Repaired Lgt. Treads 431 | -10/Materials | Repaired Lgt. Treads 458 | -10/Materials | Repaired Ion Engine 471 | -10/Materials | Discovered new exit (range 15) 993 | -10/Materials | Discovered new exit (range 15) 1294 | -10/Materials | Discovered new exit (range 3) 1672 | -10/Materials | Discovered new exit (range 13) 2284 | -10/Materials | Entered Mines 2289 | -10/Mines | Found the Drone Emporium 2297 | -10/Mines | Found Prototype Device 2311 | -10/Mines | Met a Derelict bent on vengeance 2346 | -10/Mines | Discovered new exit (range 6) 2424 | -10/Mines | Learned Materials emergency access door positions 2782 | -10/Mines | A weapon hastily lodged in a ceiling crevice suddenly fell to the ground 2972 | -10/Mines | Discovered new exit (range 15) 3050 | -10/Mines | Entered Materials 3050 | -9/Materials | Evolved 2 slots: Utility x1, Weapon x1 3134 | -9/Materials | Repaired Lgt. Treads 3162 | -9/Materials | Repaired Lgt. Treads 3226 | -9/Materials | Identified Decoy Drone Bay 3273 | -9/Materials | Discovered new exit (range 6) 3348 | -9/Materials | Build established: Tank 3558 | -9/Materials | Repaired Lgt. Armor Plating 3831 | -9/Materials | Build established: Scavenger-Tank 4490 | -9/Materials | Discovered new exit (range 9) 4829 | -9/Materials | Discovered new exit (range 3) 5275 | -9/Materials | Discovered new exit (range 16) 5419 | -9/Materials | Identified exit to Mines 5419 | -9/Materials | Identified exit to Storage 5599 | -9/Materials | Discovered new exit (range 17) 6747 | -9/Materials | Repaired Lgt. Armor Plating 6950 | -9/Materials | Entered Mines 7020 | -9/Mines | Assembled infested the area 7392 | -9/Mines | Discovered new exit (range 13) 7491 | -9/Mines | Received a Rocket Launcher from a helpful Derelict 7598 | -9/Mines | Discovered new exit (range 5) 8039 | -9/Mines | Deemed a non-threat by the Exiles lab entrance 8039 | -9/Mines | Discovered new exit (range 5) 8115 | -9/Mines | Learned Materials terminal intel 8163 | -9/Mines | Learned Materials garrison access intel 8756 | -9/Mines | A Derelict revealed a hidden shortcut to a safe place 8954 | -9/Mines | Assisted by bots powering up and referring to "LRC-V3" 9375 | -9/Mines | Entered Materials 9375 | -8/Materials | Accompanied by 3 allies 9375 | -8/Materials | Evolved 2 slots: Propulsion x1, Utility x1 9376 | -8/Materials | Loaded intel: 12 terminal locations 9377 | -8/Materials | Loaded intel: 1 garrison access location 9431 | -8/Materials | Repaired Lgt. Treads 9625 | -8/Materials | Lost 3 allies 10458 | -8/Materials | Discovered new exit (range 8) 10487 | -8/Materials | Identified exit to Garrison 10566 | -8/Materials | Entered Garrison 10630 | -8/Garrison | Build established: Tank 10640 | -8/Garrison | Triggered checkpoint 10740 | -8/Garrison | Learned Factory security intel 10848 | -8/Garrison | Triggered checkpoint 10922 | -8/Garrison | Destroyed 8 combat bots 10930 | -8/Garrison | Lost 3 parts (1n2u) 10991 | -8/Garrison | Triggered checkpoint 11227 | -8/Garrison | Discovered new exit (range 12) 11370 | -8/Garrison | Discovered new exit (range 14) 11412 | -8/Garrison | Build established: Scavenger-Tank 11567 | -8/Garrison | Discovered new exit (range 10) 11642 | -8/Garrison | Triggered checkpoint 11721 | -8/Garrison | Discovered new exit (range 23) 11721 | -8/Garrison | Discovered new exit (range 33) 11721 | -8/Garrison | Discovered new exit (range 55) 11721 | -8/Garrison | Discovered new exit (range 32) 11809 | -8/Garrison | Garrison Relay disabled 11898 | -8/Garrison | Installed Relay Interface Framework 12026 | -8/Garrison | Expanded RIF knowledge: Patrol Navigation 12069 | -8/Garrison | Garrison Relay disabled 12264 | -8/Garrison | Triggered checkpoint 12302 | -8/Garrison | Entered Materials 13022 | -8/Materials | Discovered new exit (range 16) 13048 | -8/Materials | Core integrity fell below 50% 13328 | -8/Materials | Central database locked down 13662 | -8/Materials | Garrison activated, responded to threat 13931 | -8/Materials | Identified exit to Garrison 13931 | -8/Materials | Entered Garrison 13979 | -8/Garrison | Expanded RIF knowledge: Autooverride 14083 | -8/Garrison | Triggered checkpoint 14144 | -8/Garrison | Garrison Relay disabled 14175 | -8/Garrison | Build established: Tank 14196 | -8/Garrison | Expanded RIF knowledge: Robot Detection 14287 | -8/Garrison | Triggered checkpoint 14325 | -8/Garrison | Discovered new exit (range 6) 14531 | -8/Garrison | Triggered checkpoint 14676 | -8/Garrison | Build established: Scavenger-Tank 14691 | -8/Garrison | Discovered new exit (range 9) 14823 | -8/Garrison | Discovered new exit (range 44) 14823 | -8/Garrison | Discovered new exit (range 64) 14823 | -8/Garrison | Discovered new exit (range 16) 14823 | -8/Garrison | Discovered new exit (range 45) 14881 | -8/Garrison | Entered Factory 14881 | -7/Factory | Evolved 2 slots: Propulsion x1, Utility x1 15094 | -7/Factory | Repaired Med. Reactive Plating 15554 | -7/Factory | Build established: Bothacker-Tank 15633 | -7/Factory | Identified exit to Garrison 15636 | -7/Factory | Entered Garrison 15718 | -7/Garrison | Expanded RIF knowledge: Program Shield 15812 | -7/Garrison | Triggered checkpoint 15833 | -7/Garrison | Discovered new exit (range 6) 15946 | -7/Garrison | Triggered checkpoint 16013 | -7/Garrison | Garrison Relay disabled 16188 | -7/Garrison | Triggered checkpoint 16326 | -7/Garrison | Build established: Botlord-Tank 16420 | -7/Garrison | Triggered checkpoint 16449 | -7/Garrison | Discovered new exit (range 15) 16536 | -7/Garrison | Triggered checkpoint 16549 | -7/Garrison | System corruption reached 10% 16579 | -7/Garrison | Lost 6 parts (3n3u) 16698 | -7/Garrison | Discovered new exit (range 10) 16728 | -7/Garrison | Triggered checkpoint 16834 | -7/Garrison | Garrison Relay disabled 17262 | -7/Garrison | Triggered checkpoint 17355 | -7/Garrison | Entered Factory 17788 | -7/Factory | Discovered new exit (range 4) 18061 | -7/Factory | Discovered new exit (range 5) 18463 | -7/Factory | Identified exit to Garrison 18463 | -7/Factory | Entered Garrison 18577 | -7/Garrison | Triggered checkpoint 18765 | -7/Garrison | Lost 5 parts (1p2n1u1w) 18808 | -7/Garrison | Discovered new exit (range 9) 18909 | -7/Garrison | Triggered checkpoint 18958 | -7/Garrison | Garrison Relay disabled 18990 | -7/Garrison | Heavy support dispatched to Factory 19134 | -7/Garrison | H-XX Assembler disabled 19490 | -7/Garrison | Discovered new exit (range 8) 19635 | -7/Garrison | Triggered checkpoint 19729 | -7/Garrison | Garrison Relay disabled 19863 | -7/Garrison | Triggered checkpoint 19935 | -7/Garrison | Triggered checkpoint 20118 | -7/Garrison | Triggered checkpoint 20243 | -7/Garrison | Discovered new exit (range 13) 20273 | -7/Garrison | Entered Factory 20273 | -6/Factory | Accompanied by 1 ally 20273 | -6/Factory | Evolved 2 slots: Utility x2 20973 | -6/Factory | First assault squad dispatched 20999 | -6/Factory | Identified exit to Garrison 20999 | -6/Factory | Entered Garrison 21126 | -6/Garrison | H-XX Assembler disabled 21347 | -6/Garrison | Triggered checkpoint 21399 | -6/Garrison | Garrison Relay disabled 21511 | -6/Garrison | Triggered checkpoint 21583 | -6/Garrison | Triggered checkpoint 21777 | -6/Garrison | Discovered new exit (range 11) 21875 | -6/Garrison | Triggered checkpoint 21951 | -6/Garrison | Discovered new exit (range 5) 22079 | -6/Garrison | Discovered new exit (range 12) 22286 | -6/Garrison | Garrison Relay disabled 22412 | -6/Garrison | Triggered checkpoint 22525 | -6/Garrison | Discovered new exit (range 15) 22569 | -6/Garrison | Expanded RIF knowledge: Structural Interface 22747 | -6/Garrison | Triggered checkpoint 23190 | -6/Garrison | Entered Factory 23190 | -6/Factory | Accompanied by 3 allies 23499 | -6/Factory | Build established: Botlord-Mutant 23540 | -6/Factory | First assault squad dispatched 23651 | -6/Factory | Identified exit to Garrison 23651 | -6/Factory | Entered Garrison 23651 | -6/Garrison | Accompanied by 2 allies 23768 | -6/Garrison | P-60 Hacker assimilated allied Virus 5a 23799 | -6/Garrison | Triggered checkpoint 23881 | -6/Garrison | Garrison Relay disabled 23995 | -6/Garrison | Triggered checkpoint 24185 | -6/Garrison | Discovered new exit (range 5) 24233 | -6/Garrison | Triggered checkpoint 24275 | -6/Garrison | Triggered checkpoint 24345 | -6/Garrison | Build established: Botlord-Tank 24441 | -6/Garrison | Discovered new exit (range 15) 24589 | -6/Garrison | Triggered checkpoint 24619 | -6/Garrison | Triggered checkpoint 24695 | -6/Garrison | Expanded RIF knowledge: Hotswap 24715 | -6/Garrison | Garrison Relay disabled 25028 | -6/Garrison | Discovered new exit (range 10) 25087 | -6/Garrison | Triggered checkpoint 25143 | -6/Garrison | Triggered checkpoint 25164 | -6/Garrison | Garrison Relay disabled 25223 | -6/Garrison | Expanded RIF knowledge: Code Merge 25605 | -6/Garrison | Triggered checkpoint 25659 | -6/Garrison | Garrison Relay disabled 25814 | -6/Garrison | Garrison Relay disabled 25829 | -6/Garrison | Entered Factory 25829 | -5/Factory | Accompanied by 4 allies 25829 | -5/Factory | Evolved 2 slots: Power x1, Propulsion x1 26129 | -5/Factory | First assault squad dispatched 26172 | -5/Factory | Discovered new exit (range 10) 26406 | -5/Factory | Sucked down chute 26406 | -5/Factory | Entered Waste 26406 | -5/Waste | Met up with 1 ally sucked down the chute earlier 26421 | -5/Waste | Spotted C-40 Crusher 26466 | -5/Waste | Spotted C-40 Crusher 26483 | -5/Waste | Spotted C-40 Crusher 26559 | -5/Waste | Spotted C-40 Crusher 26578 | -5/Waste | Spotted C-40 Crusher 26666 | -5/Waste | Discovered new exit (range 13) 26696 | -5/Waste | Warlord forces began an assault 26705 | -5/Waste | Allies destroyed C-40 Crusher 26711 | -5/Waste | Allies destroyed C-40 Crusher 26869 | -5/Waste | Build established: Bothacker-Tank 27010 | -5/Waste | Entered Factory 27010 | -5/Factory | Accompanied by 19 allies 27380 | -5/Factory | Garrison activated, responded to threat 27438 | -5/Factory | Identified exit to Garrison 27445 | -5/Factory | Entered Garrison 27445 | -5/Garrison | Accompanied by 16 allies 27580 | -5/Garrison | Triggered checkpoint 27591 | -5/Garrison | Triggered checkpoint 27650 | -5/Garrison | Triggered checkpoint 27699 | -5/Garrison | Discovered new exit (range 10) 27713 | -5/Garrison | Triggered checkpoint 27777 | -5/Garrison | Found embedded Infiltrators 27783 | -5/Garrison | Garrison Relay disabled 27883 | -5/Garrison | Triggered checkpoint 27973 | -5/Garrison | Discovered new exit (range 11) 28043 | -5/Garrison | Triggered checkpoint 28084 | -5/Garrison | Discovered new exit (range 36) 28084 | -5/Garrison | Discovered new exit (range 67) 28084 | -5/Garrison | Discovered new exit (range 26) 28096 | -5/Garrison | Garrison Relay disabled 28219 | -5/Garrison | Triggered checkpoint 28240 | -5/Garrison | Garrison Relay disabled 28273 | -5/Garrison | Expanded RIF knowledge: Watcher Feeds 28293 | -5/Garrison | Lost 5 allies 28424 | -5/Garrison | Lost 7 allies 28512 | -5/Garrison | Entered Factory 28512 | -4/Factory | Evolved 2 slots: Propulsion x1, Utility x1 28685 | -4/Factory | Build established: Botlord-Tank 29723 | -4/Factory | Identified exit to Garrison 29723 | -4/Factory | Entered Garrison 29766 | -4/Garrison | Expanded RIF knowledge: Autoassimilate 29829 | -4/Garrison | Spotted B-86 Titan 30002 | -4/Garrison | Destroyed 8 combat bots 30119 | -4/Garrison | Triggered checkpoint 30154 | -4/Garrison | Spotted B-86 Titan 30154 | -4/Garrison | Spotted B-86 Titan 30211 | -4/Garrison | Discovered new exit (range 15) 30233 | -4/Garrison | Triggered checkpoint 30406 | -4/Garrison | Garrison Relay disabled 30447 | -4/Garrison | Triggered checkpoint 30506 | -4/Garrison | Lost 4 parts (1p1n2u) 30512 | -4/Garrison | Garrison Relay disabled 30579 | -4/Garrison | Triggered checkpoint 30686 | -4/Garrison | Discovered new exit (range 11) 30727 | -4/Garrison | Triggered checkpoint 30791 | -4/Garrison | Garrison Relay disabled 30950 | -4/Garrison | Expanded RIF knowledge: Code Merge 30982 | -4/Garrison | Discovered new exit (range 10) 30988 | -4/Garrison | Triggered checkpoint 31010 | -4/Garrison | Garrison Relay disabled 31141 | -4/Garrison | Found Unknown Hackware 31142 | -4/Garrison | Identified Relay Coupler [Proto] 31147 | -4/Garrison | Found Relay Coupler [Proto] 31150 | -4/Garrison | Found Relay Coupler [Proto] 31186 | -4/Garrison | Entered Factory 31270 | -4/Factory | Identified exit to Garrison 31270 | -4/Factory | Entered Garrison 31512 | -4/Garrison | Garrison Relay disabled 31578 | -4/Garrison | Triggered checkpoint 31642 | -4/Garrison | Garrison Relay disabled 31776 | -4/Garrison | Triggered checkpoint 32058 | -4/Garrison | Triggered checkpoint 32107 | -4/Garrison | Garrison Relay disabled 32139 | -4/Garrison | Expanded RIF knowledge: Threat Obfuscation 32205 | -4/Garrison | Discovered new exit (range 12) 32341 | -4/Garrison | Expanded RIF knowledge: Crosswire 32370 | -4/Garrison | Discovered new exit (range 10) 32382 | -4/Garrison | Triggered checkpoint 32450 | -4/Garrison | Garrison Relay disabled 32542 | -4/Garrison | Triggered checkpoint 32569 | -4/Garrison | Discovered new exit (range 10) 32594 | -4/Garrison | Triggered checkpoint 32632 | -4/Garrison | Garrison Relay disabled 32699 | -4/Garrison | Entered Research 32699 | -3/Research | Accompanied by 1 ally 32699 | -3/Research | Evolved 2 slots: Utility x2 32877 | -3/Research | Discovered new exit (range 82) 33270 | -3/Research | Identified exit to Research 33359 | -3/Research | Found Prototype Launcher 33362 | -3/Research | Found Prototype Launcher 33365 | -3/Research | Found Prototype Launcher 33487 | -3/Research | Identified Adv. Micro-nuke Launcher (x3) 33584 | -3/Research | System corruption reached 10% 33614 | -3/Research | Lost 3 parts (1p2u) 33930 | -3/Research | Discovered exit to Research (range 11) 34041 | -3/Research | Cargo convoy interrupted 34063 | -3/Research | Discovered new exit (range 13) 34133 | -3/Research | Entered Armory 34317 | -3/Armory | Assisted by bots powering up and referring to "LRC-V3" 34531 | -3/Armory | Lost 3 allies 34647 | -3/Armory | Lost 4 allies 34706 | -3/Armory | P-80 Master assimilated allied Veteran 8i 34914 | -3/Armory | Spotted B-86 Titan 34948 | -3/Armory | Discovered exit to Research (range 17) 35017 | -3/Armory | Lost 3 allies 35019 | -3/Armory | Found Quantum Capacitor 35392 | -3/Armory | Lost 4 allies 35662 | -3/Armory | Discovered new exit (range 3) 35667 | -3/Armory | Entered Lab 35674 | -3/Lab | Discovered exit to Research (range 9) 35694 | -3/Lab | Unable to decrypt terminal 35721 | -3/Lab | Entered Research 35721 | -2/Research | Evolved 2 slots: Power x1, Utility x1 36128 | -2/Research | System corruption reached 10% 36168 | -2/Research | Lost 9 parts (1p3n4u1w) 36185 | -2/Research | Build established: Botlord-Mutant 36345 | -2/Research | Found Prototype Device 36345 | -2/Research | Identified Exp. Actuator Array 36445 | -2/Research | Lost 6 parts (3n2u1w) 36667 | -2/Research | Spotted B-90 Cyclops 36710 | -2/Research | Found Prototype Processor 36710 | -2/Research | Identified Exp. Signal Interpreter 36721 | -2/Research | Search patrols dispatched 36743 | -2/Research | Spotted B-90 Cyclops 36744 | -2/Research | Core integrity fell below 50% 36765 | -2/Research | Discovered new exit (range 15) 36768 | -2/Research | Identified exit to Access 36772 | -2/Research | Lost 5 parts (2n3u) 36799 | -2/Research | Spotted B-90 Cyclops 36871 | -2/Research | Core integrity fell below 20% 36911 | -2/Research | Lost 7 parts (5n2u) 36915 | -2/Research | Destroyed by G-73 Enforcer with Heavy Laser Last Messages --------------- 36866_ Acquired Nuclear Pulse Array. 36866_ Slug penetrates Wall. 36867_ C-30 ARC bursts open, deploying its payload. 36867_ S-43 Plague unfolds itself. 36868_ Slug penetrates Wall. 36868_ Cld. Field Propulsion Drive destroyed. 36870_ Slug penetrates Wall. 36880_ Exp. Q-thruster destroyed. 36880_ Penetrated by Slug. 36880_ Critical hit (Destroy). 36880_ Cld. Impulse Thruster destroyed. 36880_ Penetrated by Slug. 36880_ Nuclear Pulse Array destroyed. 36880_ Penetrated by Slug. 36884_ Slug penetrates Wall. 36885_ Penetrated by Slug. 36900_ JP0DAPFEIS6DEVZ=N%IRTDKK 36905_ Acquired 61 matter. 36911_ Critical hit (Burn: +37). 36915_ System corrupted: Matter fused (-10). Map ----- +----------------------------------------------------+ | ##???????????????????????????????????????????????? | | #???????????????????????????????????????????????? | | #???????????????????????????????????????????????? | | !#???????????????????????????????????????????????? | | ####################?????###+##?????????????????? | | ## # #????? #?????????????????? | | ## # #?Y??? #?????????????????? | | ## !# " #????"" #?????????????????? | | ## # * """"#?????"" #?????????????????? | | ### # """"#?????R ]#?????????????????? | | ??# = + """"#??????" #?????????????????? | | ??# # """"#?????? =#?????????????????? | | ?## # #??????? #?????????????????? | | ?#" = # ###????? g ??????????????????? | | #######/########+#### #######g##?????????????????? | | ## g#?????????????????? | | +% #?????????????????? | | ####+######### ## "" #?????????????????? | | # # ## "" !! #?????????????????? | | # = # ## "" !! #?????????????????? | | # = + ## S !! #?????????????????? | | # [ # + "" #?????????????????? | | # # ## "" #?????????????????? | | ############## ## "" #?????????????????? | | ############## ## k #?????????????????? | | ## @ #?????????????????? | | ## #?????????????????? | | ########+##############?????????? | | """ #????# + #?????????? | | """ " " #????# # #?????????? | | """ ""G"" ###### # #?????????? | | + #?????????? | | # #??????"""" | | # #??????# | | #####? ####### #?###########??????## | | ?????????????# ##################### | | ?????????????# | | ?????????????# % ######### | | ?????????????# #### #???????# | | ?????????????########## #??#+######### | | ??????????????????????# BB #??# """"" # | | ??????????????????????# BB #??# """"" # #####+ | | ??????????????????????# #??# """"" # #??? | | ??????????????????????# #??# # #??? | | ??????????????????????# #??# + #?? " | | ??????????????????????# #??# # #??""" | | ??????????????????????# #??# # #? """ | | ??????????????????????# #??# # #? """ | | #########+############# #??########### # """ | | #?????# # # ??? | +----------------------------------------------------+ Best States ------------- Heat Dissipation 73 Coolant Potential 100 Energy Generation 45 Energy Capacity 440 Matter Stores 300 Matter Capacity 300 Sight Range 16 Terrain Scan Density 10 Jamming Range 16 Additional Mass Support 16 Armor Coverage 900 Resistance: KI 30 Point Defense Rating 240 Phase Shifting 15 Evasion (%) 75 Targeting Accuracy 6 Recoil Reduction 6 Offensive Hacking 20 Defensive Hacking 24 Relay Coupler Types 8 Relay Coupler Value 263 Item Schematics ----------------- None Robot Schematics ------------------ None Fabricated ------------ Nothing Alien Tech Used ----------------- None Achievements -------------- None Challenges ------------ None Game ------ Seed ChainCommMultirail Manual? 0 Play Time 05:55:26 Cumulative 304.5 hours Start 2025.01.25 @ 23:49:20 End 2025.02.22 @ 18:38:02 Sessions 22 Manual Loads 0 Difficulty Rogue Special Mode None Game No. 168 Rogue 168 Adventurer 0 Explorer 0 Win Type - Total 15 Types 3/2/6/2/1/0/1/0/0 Lore% 81 Gallery% 83 Achievement% 73 Wizard Run 0 Options --------- Layout 0 ASCII 0 Keyboard 0 Movement Arrows Keybinds 0 Fullscreen 2 Font 18/SmallcapsGlow Map View 76x50 Zoom Use 0% Tactical HUD 1 Map Filters NONE Filters NONE Steam 1 RUN: 5e45c3aa-c508-4d2f-b5f5-152d36f9dcc9